fUSD/lending_fUSD_20260606
["ID","MTS","AMOUNT","RATE_DAILY","PERIOD"]
[424261885,1780708246000,-323.208621,0.00027891,7]
[424261905,1780708246000,-1273.0,0.00027891,2]
[424261884,1780708246000,-412.11,0.0002789,7]
[424261882,1780708246000,-500.0,0.0002789,7]
[424261888,1780708246000,-323.208621,0.00027891,7]
[424261889,1780708246000,-924.780105,0.00027891,7]
[424261887,1780708246000,-323.208621,0.00027891,7]
[424261890,1780708246000,-151.0,0.00027891,7]
[424261899,1780708246000,-150.0,0.00027891,2]
[424261898,1780708246000,-150.0,0.00027891,2]
[424261892,1780708246000,-151.0,0.00027891,7]
[424261895,1780708246000,-924.780105,0.00027891,7]
[424261896,1780708246000,-151.0,0.00027891,7]
[424261891,1780708246000,-924.780105,0.00027891,7]
[424261897,1780708246000,-150.0,0.00027891,2]
[424261907,1780708246000,-600.0,0.00028,2]
[424261911,1780708246000,-39468.26079027,0.00028104,2]
[424261904,1780708246000,-382.0,0.00027891,2]
[424261903,1780708246000,-1357.0,0.00027891,2]
[424261906,1780708246000,-1227.0,0.00027891,2]
[424261902,1780708246000,-3553.0,0.00027891,2]
[424261900,1780708246000,-150.0,0.00027891,2]
[424261912,1780708246000,-641.0,0.00028205,3]
[424261901,1780708246000,-150.0,0.00027891,2]
[424261894,1780708246000,-151.0,0.00027891,7]
[424261893,1780708246000,-924.780105,0.00027891,7]
[424261910,1780708246000,-1300.36,0.00028082,2]
[424261975,1780708247000,-1000.0,0.00028826,2]
[424261981,1780708247000,-1000.0,0.00028826,2]
[424261980,1780708247000,-1000.0,0.00028826,2]
[424261982,1780708247000,-1000.0,0.00028826,2]
[424261977,1780708247000,-1000.0,0.00028826,2]
[424261979,1780708247000,-1000.0,0.00028826,2]
[424261978,1780708247000,-1000.0,0.00028826,2]
[424261976,1780708247000,-1000.0,0.00028826,2]
[424261985,1780708247000,-1000.0,0.00028826,2]
[424261968,1780708247000,-1000.0,0.00028826,2]
[424261974,1780708247000,-1000.0,0.00028826,2]
[424261984,1780708247000,-1000.0,0.00028826,2]
[424261983,1780708247000,-1000.0,0.00028826,2]
[424261986,1780708247000,-1000.0,0.00028826,2]
[424261999,1780708247000,-2000.0,0.00028826,2]
[424261989,1780708247000,-1000.0,0.00028826,2]
[424261997,1780708247000,-2000.0,0.00028826,2]
[424261988,1780708247000,-1000.0,0.00028826,2]
[424261991,1780708247000,-1000.0,0.00028826,2]
[424261990,1780708247000,-1000.0,0.00028826,2]
[424261992,1780708247000,-1000.0,0.00028826,2]
[424261993,1780708247000,-1000.0,0.00028826,2]
[424261994,1780708247000,-1000.0,0.00028826,2]
[424261995,1780708247000,-1000.0,0.00028826,2]
[424261996,1780708247000,-876.37,0.00028826,2]
[424262009,1780708247000,-241.430709,0.00028826,7]
[424261998,1780708247000,-2000.0,0.00028826,2]
[424261972,1780708247000,-1000.0,0.00028826,2]
[424261987,1780708247000,-1000.0,0.00028826,2]
[424261970,1780708247000,-1000.0,0.00028826,2]
[424261945,1780708247000,-4535.0,0.000287,2]
[424261969,1780708247000,-1000.0,0.00028826,2]
[424262010,1780708247000,-151.0,0.00028826,7]
[424261941,1780708247000,-672.5,0.00028693,30]
[424261942,1780708247000,-671.15,0.00028693,30]
[424261943,1780708247000,-1182.91,0.000287,14]
[424261950,1780708247000,-671.15,0.00028756,7]
[424261944,1780708247000,-1614.13,0.000287,7]
[424261947,1780708247000,-671.15,0.00028725,2]
[424261946,1780708247000,-672.5,0.00028725,2]
[424261948,1780708247000,-641.0,0.00028739,3]
[424261949,1780708247000,-672.5,0.00028756,7]
[424261954,1780708247000,-672.5,0.00028788,30]
[424261959,1780708247000,-2937.12,0.00028797,7]
[424261961,1780708247000,-3000.54,0.00028797,7]
[424261971,1780708247000,-1000.0,0.00028826,2]
[424261953,1780708247000,-300.0,0.00028768,14]
[424261958,1780708247000,-3013.23,0.00028797,7]
[424261960,1780708247000,-1743.73,0.00028797,7]
[424261956,1780708247000,-2977.37,0.00028797,7]
[424261951,1780708247000,-216.86219559,0.00028767,2]
[424261957,1780708247000,-1779.92,0.00028797,7]
[424261955,1780708247000,-671.15,0.00028788,30]
[424261962,1780708247000,-215.77576141,0.000288,10]
[424261965,1780708247000,-671.15,0.0002882,2]
[424261967,1780708247000,-1000.0,0.00028826,2]
[424261963,1780708247000,-250.0,0.000288,2]
[424261973,1780708247000,-1000.0,0.00028826,2]
[424261964,1780708247000,-672.5,0.0002882,2]
[424261966,1780708247000,-1000.0,0.00028826,2]
[424261952,1780708247000,-151.0,0.00028767,5]
[424262002,1780708247000,-2000.0,0.00028826,2]
[424262059,1780708247000,-396.05208952,0.00029,2]
[424262001,1780708247000,-2000.0,0.00028826,2]
[424262030,1780708247000,-671.15,0.00028852,7]
[424262038,1780708247000,-1994.90960012,0.000289,2]
[424262041,1780708247000,-672.5,0.00028915,2]
[424262044,1780708247000,-671.15,0.00028947,7]
[424262043,1780708247000,-672.5,0.00028947,7]
[424262042,1780708247000,-671.15,0.00028915,2]
[424262040,1780708247000,-192.02883074,0.000289,2]
[424262039,1780708247000,-1994.90960012,0.000289,2]
[424262049,1780708247000,-1743.73,0.00028964,2]
[424262046,1780708247000,-1779.92,0.00028964,2]
[424262048,1780708247000,-2937.12,0.00028964,2]
[424262047,1780708247000,-3013.23,0.00028964,2]
[424262050,1780708247000,-3000.54,0.00028964,2]
[424262027,1780708247000,-151.0,0.00028826,7]
[424262052,1780708247000,-672.5,0.00028979,30]
[424262056,1780708247000,-200.0,0.00029,2]
[424262057,1780708247000,-200.0,0.00029,2]
[424262064,1780708247000,-1000.0,0.00029,2]
[424262051,1780708247000,-179.97120458,0.00028971,2]
[424262054,1780708247000,-154.08,0.00029,2]
[424262053,1780708247000,-671.15,0.00028979,30]
[424262055,1780708247000,-200.0,0.00029,2]
[424262063,1780708247000,-1000.0,0.00029,2]
[424262060,1780708247000,-1000.0,0.00029,2]
[424262058,1780708247000,-263.87,0.00029,2]
[424262061,1780708247000,-1000.0,0.00029,2]
[424262065,1780708247000,-1000.0,0.00029,2]
[424262000,1780708247000,-1766.75,0.00028826,2]
[424262062,1780708247000,-1000.0,0.00029,2]
[424262028,1780708247000,-152.582099,0.00028826,7]
[424262045,1780708247000,-2977.37,0.00028964,2]
[424262029,1780708247000,-672.5,0.00028852,7]
[424262005,1780708247000,-2000.0,0.00028826,2]
[424262032,1780708247000,-672.5,0.00028883,30]
[424262003,1780708247000,-2000.0,0.00028826,2]
[424262007,1780708247000,-2000.0,0.00028826,2]
[424262004,1780708247000,-2000.0,0.00028826,2]
[424262006,1780708247000,-2000.0,0.00028826,2]
[424262008,1780708247000,-1784.76,0.00028826,2]
[424262013,1780708247000,-151.0,0.00028826,7]
[424262011,1780708247000,-151.0,0.00028826,7]
[424262018,1780708247000,-1094.222631,0.00028826,7]
[424262012,1780708247000,-151.0,0.00028826,7]
[424262014,1780708247000,-151.0,0.00028826,7]
[424262019,1780708247000,-616.852183,0.00028826,7]
[424262022,1780708247000,-616.852183,0.00028826,7]
[424262023,1780708247000,-2532.201305,0.00028826,7]
[424262021,1780708247000,-616.852183,0.00028826,7]
[424262037,1780708247000,-1994.90960014,0.000289,2]
[424262016,1780708247000,-1094.222631,0.00028826,7]
[424262026,1780708247000,-2532.201305,0.00028826,7]
[424262034,1780708247000,-4173.69183888,0.000289,2]
[424262035,1780708247000,-4173.69183885,0.000289,2]
[424262036,1780708247000,-4173.69183885,0.000289,2]
[424262024,1780708247000,-2532.201305,0.00028826,7]
[424262031,1780708247000,-150.0,0.00028855,2]
[424262025,1780708247000,-2532.201305,0.00028826,7]
[424262020,1780708247000,-616.852183,0.00028826,7]
[424262017,1780708247000,-1094.222631,0.00028826,7]
[424262015,1780708247000,-1094.222631,0.00028826,7]
[424262033,1780708247000,-671.15,0.00028883,30]
[424262112,1780708248000,-672.5,0.00029105,2]
[424262109,1780708248000,-672.5,0.00029074,30]
[424262106,1780708248000,-4124.44,0.00029012,2]
[424262108,1780708248000,-671.15,0.00029042,7]
[424262110,1780708248000,-671.15,0.00029074,30]
[424262105,1780708248000,-671.15,0.0002901,2]
[424262114,1780708248000,-352.09981314,0.00029123,2]
[424262104,1780708248000,-672.5,0.0002901,2]
[424262102,1780708248000,-527.01610829,0.00029,2]
[424262100,1780708248000,-315.0,0.00029,2]
[424262090,1780708248000,-158.0,0.00029,4]
[424262107,1780708248000,-672.5,0.00029042,7]
[424262103,1780708248000,-1000.0,0.00029,2]
[424262111,1780708248000,-500.0,0.00029076,17]
[424262121,1780708248000,-836.86297065,0.00029123,2]
[424262115,1780708248000,-194.89538777,0.00029123,2]
[424262116,1780708248000,-312.08275514,0.00029123,2]
[424262117,1780708248000,-430.78567529,0.00029123,2]
[424262126,1780708248000,-335.06626322,0.00029123,2]
[424262118,1780708248000,-397.02640478,0.00029123,2]
[424262127,1780708248000,-178.68242071,0.00029123,2]
[424262119,1780708248000,-204.40773775,0.00029123,2]
[424262128,1780708248000,-360.02506233,0.00029123,2]
[424262120,1780708248000,-766.52702128,0.00029123,2]
[424262123,1780708248000,-726.80831031,0.00029123,2]
[424262125,1780708248000,-217.72190705,0.00029123,2]
[424262124,1780708248000,-332.61760323,0.00029123,2]
[424262101,1780708248000,-309.0,0.00029,2]
[424262113,1780708248000,-671.15,0.00029105,2]
[424262097,1780708248000,-157.0,0.00029,4]
[424262068,1780708248000,-1000.0,0.00029,2]
[424262095,1780708248000,-157.0,0.00029,4]
[424262067,1780708248000,-1000.0,0.00029,2]
[424262072,1780708248000,-865.16,0.00029,2]
[424262069,1780708248000,-1000.0,0.00029,2]
[424262070,1780708248000,-1000.0,0.00029,2]
[424262075,1780708248000,-1236.15,0.00029,2]
[424262066,1780708248000,-1000.0,0.00029,2]
[424262071,1780708248000,-1000.0,0.00029,2]
[424262074,1780708248000,-2000.0,0.00029,2]
[424262073,1780708248000,-10000.0,0.00029,2]
[424262077,1780708248000,-2000.0,0.00029,2]
[424262087,1780708248000,-158.0,0.00029,4]
[424262079,1780708248000,-576.98,0.00029,2]
[424262088,1780708248000,-158.0,0.00029,4]
[424262076,1780708248000,-2000.0,0.00029,2]
[424262080,1780708248000,-10000.0,0.00029,2]
[424262078,1780708248000,-2000.0,0.00029,2]
[424262084,1780708248000,-158.0,0.00029,4]
[424262081,1780708248000,-1364.0,0.00029,7]
[424262086,1780708248000,-158.0,0.00029,4]
[424262082,1780708248000,-164.0,0.00029,4]
[424262083,1780708248000,-158.0,0.00029,4]
[424262085,1780708248000,-158.0,0.00029,4]
[424262089,1780708248000,-158.0,0.00029,4]
[424262092,1780708248000,-158.0,0.00029,4]
[424262091,1780708248000,-158.0,0.00029,4]
[424262093,1780708248000,-159.0,0.00029,4]
[424262099,1780708248000,-157.0,0.00029,4]
[424262098,1780708248000,-157.0,0.00029,4]
[424262096,1780708248000,-157.0,0.00029,4]
[424262094,1780708248000,-157.0,0.00029,4]
[424262122,1780708248000,-338.18835622,0.00029123,2]
[424262140,1780708248000,-233.28369986,0.00029123,2]
[424262129,1780708248000,-375.93640316,0.00029123,2]
[424262161,1780708248000,-345.17721905,0.00029139,2]
[424262162,1780708248000,-157.36268132,0.00029139,2]
[424262166,1780708248000,-347.38792731,0.00029162,2]
[424262158,1780708248000,-336.92863789,0.00029139,2]
[424262169,1780708248000,-323.21421741,0.00029162,2]
[424262178,1780708248000,-671.15,0.00029201,2]
[424262176,1780708248000,-2085.19,0.000292,7]
[424262180,1780708248000,-678.12,0.00029232,7]
[424262171,1780708248000,-358.74091182,0.00029162,2]
[424262170,1780708248000,-398.92660189,0.00029162,2]
[424262177,1780708248000,-672.5,0.00029201,2]
[424262173,1780708248000,-406.35236935,0.00029162,2]
[424262172,1780708248000,-626.16211448,0.00029162,2]
[424262156,1780708248000,-208.13402105,0.00029139,2]
[424262175,1780708248000,-671.15,0.00029169,30]
[424262181,1780708248000,-672.69,0.00029232,7]
[424262174,1780708248000,-672.5,0.00029169,30]
[424262188,1780708248000,-3013.23,0.00029299,7]
[424262182,1780708248000,-671.28,0.00029232,7]
[424262185,1780708248000,-500.0,0.00029282,14]
[424262187,1780708248000,-1779.92,0.00029299,7]
[424262189,1780708248000,-2937.12,0.00029299,7]
[424262186,1780708248000,-2977.37,0.00029299,7]
[424262184,1780708248000,-641.0,0.00029273,4]
[424262183,1780708248000,-198.0,0.00029249,15]
[424262192,1780708248000,-205.22997683,0.0002933,20]
[424262130,1780708248000,-307.67531783,0.00029123,2]
[424262190,1780708248000,-1743.73,0.00029299,7]
[424262179,1780708248000,-638.8126043,0.00029203,2]
[424262160,1780708248000,-341.06467066,0.00029139,2]
[424262191,1780708248000,-3000.54,0.00029299,7]
[424262165,1780708248000,-328.33153673,0.00029162,2]
[424262163,1780708248000,-401.56497329,0.00029143,2]
[424262132,1780708248000,-183.26736966,0.00029123,2]
[424262141,1780708248000,-326.57099505,0.00029123,2]
[424262131,1780708248000,-388.34813914,0.00029123,2]
[424262133,1780708248000,-316.52610546,0.00029123,2]
[424262134,1780708248000,-248.86405091,0.00029123,2]
[424262139,1780708248000,-344.98328634,0.00029123,2]
[424262138,1780708248000,-327.68856821,0.00029123,2]
[424262136,1780708248000,-216.88909406,0.00029123,2]
[424262135,1780708248000,-366.30265985,0.00029123,2]
[424262137,1780708248000,-311.02541389,0.00029123,2]
[424262143,1780708248000,-300.0,0.0002913,20]
[424262146,1780708248000,-3013.23,0.00029132,30]
[424262148,1780708248000,-1743.73,0.00029132,30]
[424262142,1780708248000,-314.84337952,0.00029123,2]
[424262145,1780708248000,-1779.92,0.00029132,30]
[424262147,1780708248000,-2937.12,0.00029132,30]
[424262159,1780708248000,-352.38570245,0.00029139,2]
[424262167,1780708248000,-349.66120533,0.00029162,2]
[424262168,1780708248000,-351.73024501,0.00029162,2]
[424262157,1780708248000,-242.58455563,0.00029139,2]
[424262149,1780708248000,-3000.54,0.00029132,30]
[424262164,1780708248000,-353.24385809,0.00029162,2]
[424262150,1780708248000,-672.5,0.00029137,7]
[424262154,1780708248000,-196.10944661,0.00029139,2]
[424262152,1780708248000,-314.21261492,0.00029139,2]
[424262155,1780708248000,-311.07321185,0.00029139,2]
[424262153,1780708248000,-407.04051722,0.00029139,2]
[424262144,1780708248000,-2977.37,0.00029132,30]
[424262151,1780708248000,-671.15,0.00029137,7]
[424262226,1780708249000,-650.0,0.00029617,2]
[424262238,1780708249000,-150.19828257,0.00029996,2]
[424262233,1780708249000,-154.32416432,0.00029889,20]
[424262235,1780708249000,-1039.35,0.000299,7]
[424262227,1780708249000,-333.0,0.00029617,2]
[424262229,1780708249000,-993.57,0.00029735,7]
[424262228,1780708249000,-215.77576141,0.000297,10]
[424262225,1780708249000,-650.0,0.00029617,2]
[424262224,1780708249000,-650.0,0.00029617,2]
[424262231,1780708249000,-641.0,0.00029807,4]
[424262230,1780708249000,-1703.26,0.00029735,7]
[424262221,1780708249000,-650.0,0.00029617,2]
[424262251,1780708249000,-408.81547551,0.00029996,2]
[424262232,1780708249000,-993.57,0.00029884,7]
[424262236,1780708249000,-215.77576141,0.000299,7]
[424262237,1780708249000,-500.0,0.00029948,19]
[424262240,1780708249000,-389.79077554,0.00029996,2]
[424262239,1780708249000,-528.14971971,0.00029996,2]
[424262252,1780708249000,-243.33337437,0.00029996,2]
[424262250,1780708249000,-281.55244677,0.00029996,2]
[424262241,1780708249000,-222.30575489,0.00029996,2]
[424262246,1780708249000,-646.17851293,0.00029996,2]
[424262248,1780708249000,-595.53960717,0.00029996,2]
[424262244,1780708249000,-230.06886792,0.00029996,2]
[424262247,1780708249000,-206.20332187,0.00029996,2]
[424262220,1780708249000,-650.0,0.00029617,2]
[424262234,1780708249000,-428.2803073,0.00029891,5]
[424262223,1780708249000,-650.0,0.00029617,2]
[424262203,1780708249000,-638.0,0.00029407,30]
[424262222,1780708249000,-650.0,0.00029617,2]
[424262242,1780708249000,-468.12413271,0.00029996,2]
[424262193,1780708249000,-200.0,0.00029345,2]
[424262194,1780708249000,-200.0,0.00029383,15]
[424262195,1780708249000,-791.0,0.00029398,30]
[424262205,1780708249000,-3833.0,0.00029407,30]
[424262198,1780708249000,-2590.0,0.00029398,30]
[424262196,1780708249000,-1014.0,0.00029398,30]
[424262197,1780708249000,-574.0,0.00029398,30]
[424262206,1780708249000,-800.0,0.00029409,30]
[424262201,1780708249000,-587.0,0.00029407,30]
[424262202,1780708249000,-3806.0,0.00029407,30]
[424262204,1780708249000,-704.0,0.00029407,30]
[424262219,1780708249000,-650.0,0.00029617,2]
[424262200,1780708249000,-1022.0,0.00029407,30]
[424262208,1780708249000,-408.0,0.00029409,30]
[424262207,1780708249000,-1691.0,0.00029409,30]
[424262211,1780708249000,-671.84,0.00029468,7]
[424262212,1780708249000,-1100.09,0.00029468,7]
[424262215,1780708249000,-1614.13,0.000295,7]
[424262216,1780708249000,-5530.0,0.000295,3]
[424262210,1780708249000,-1300.36,0.00029452,2]
[424262209,1780708249000,-993.57,0.00029436,7]
[424262214,1780708249000,-1182.91,0.000295,14]
[424262213,1780708249000,-1035.87814702,0.0002948,5]
[424262217,1780708249000,-993.57,0.00029586,7]
[424262218,1780708249000,-650.0,0.00029617,2]
[424262199,1780708249000,-3440.0,0.00029407,30]
[424262249,1780708249000,-201.09154202,0.00029996,2]
[424262308,1780708249000,-314.72536265,0.00030013,2]
[424262245,1780708249000,-210.75264507,0.00029996,2]
[424262281,1780708249000,-466.56739972,0.00029996,2]
[424262280,1780708249000,-517.47492951,0.00029996,2]
[424262283,1780708249000,-489.85649258,0.00029996,2]
[424262286,1780708249000,-605.39,0.00029999,3]
[424262287,1780708249000,-864.85,0.00029999,3]
[424262289,1780708249000,-2085.19,0.0003,7]
[424262288,1780708249000,-650.0,0.0003,2]
[424262290,1780708249000,-368.8693423,0.0003,30]
[424262291,1780708249000,-200.0,0.0003,2]
[424262295,1780708249000,-179.14172686,0.00030013,2]
[424262292,1780708249000,-200.0,0.0003,2]
[424262296,1780708249000,-471.31892238,0.00030013,2]
[424262285,1780708249000,-259.45,0.00029999,3]
[424262298,1780708249000,-392.21889321,0.00030013,2]
[424262293,1780708249000,-215.77576141,0.0003,30]
[424262306,1780708249000,-511.59700598,0.00030013,2]
[424262300,1780708249000,-416.26804211,0.00030013,2]
[424262299,1780708249000,-466.60981777,0.00030013,2]
[424262305,1780708249000,-217.55666825,0.00030013,2]
[424262301,1780708249000,-228.38145185,0.00030013,2]
[424262304,1780708249000,-528.57855368,0.00030013,2]
[424262307,1780708249000,-517.76582857,0.00030013,2]
[424262303,1780708249000,-505.39295683,0.00030013,2]
[424262309,1780708249000,-243.76851266,0.00030017,2]
[424262302,1780708249000,-485.16911127,0.00030013,2]
[424262243,1780708249000,-257.73096849,0.00029996,2]
[424262294,1780708249000,-200.0,0.0003,2]
[424262278,1780708249000,-273.58628567,0.00029996,2]
[424262297,1780708249000,-610.56077583,0.00030013,2]
[424262279,1780708249000,-491.53285232,0.00029996,2]
[424262284,1780708249000,-472.26506928,0.00029996,2]
[424262253,1780708249000,-1149.79053193,0.00029996,2]
[424262256,1780708249000,-201.10486381,0.00029996,2]
[424262257,1780708249000,-507.28253433,0.00029996,2]
[424262255,1780708249000,-208.03935119,0.00029996,2]
[424262254,1780708249000,-154.47772206,0.00029996,2]
[424262262,1780708249000,-540.0375935,0.00029996,2]
[424262261,1780708249000,-502.59939484,0.00029996,2]
[424262258,1780708249000,-1090.21246546,0.00029996,2]
[424262259,1780708249000,-498.92640485,0.00029996,2]
[424262263,1780708249000,-357.36484142,0.00029996,2]
[424262264,1780708249000,-563.90460474,0.00029996,2]
[424262266,1780708249000,-461.51297674,0.00029996,2]
[424262260,1780708249000,-435.4438141,0.00029996,2]
[424262282,1780708249000,-299.81333703,0.00029996,2]
[424262268,1780708249000,-267.64138998,0.00029996,2]
[424262277,1780708249000,-194.51751527,0.00029996,2]
[424262275,1780708249000,-265.4054757,0.00029996,2]
[424262274,1780708249000,-246.19793578,0.00029996,2]
[424262273,1780708249000,-433.77818812,0.00029996,2]
[424262271,1780708249000,-497.72810181,0.00029996,2]
[424262272,1780708249000,-549.45398977,0.00029996,2]
[424262269,1780708249000,-366.53473931,0.00029996,2]
[424262270,1780708249000,-474.7891582,0.00029996,2]
[424262265,1780708249000,-582.52220871,0.00029996,2]
[424262276,1780708249000,-466.53812084,0.00029996,2]
[424262267,1780708249000,-1255.29445597,0.00029996,2]
[424262360,1780708250000,-930.00006134,0.00030137,120]
[424262341,1780708250000,-500.0,0.00030137,3]
[424262356,1780708250000,-939.81455342,0.00030137,120]
[424262359,1780708250000,-930.00122682,0.00030137,120]
[424262337,1780708250000,-500.0,0.00030137,3]
[424262339,1780708250000,-500.0,0.00030137,3]
[424262340,1780708250000,-151.86318885,0.00030137,5]
[424262345,1780708250000,-213.75,0.00030137,2]
[424262344,1780708250000,-500.0,0.00030137,3]
[424262346,1780708250000,-1300.35409609,0.00030137,2]
[424262343,1780708250000,-500.0,0.00030137,3]
[424262361,1780708250000,-930.00000307,0.00030137,120]
[424262342,1780708250000,-500.0,0.00030137,3]
[424262358,1780708250000,-930.02453638,0.00030137,120]
[424262366,1780708250000,-150.0001,0.00030137,30]
[424262352,1780708250000,-1790.940308,0.00030137,15]
[424262363,1780708250000,-930.00000001,0.00030137,120]
[424262362,1780708250000,-930.00000015,0.00030137,120]
[424262354,1780708250000,-381.79,0.00030137,2]
[424262351,1780708250000,-1500.0,0.00030137,15]
[424262357,1780708250000,-930.49072767,0.00030137,120]
[424262353,1780708250000,-317.13048338,0.00030137,2]
[424262364,1780708250000,-293.65,0.00030137,2]
[424262375,1780708250000,-150.0,0.00030137,2]
[424262373,1780708250000,-150.0,0.00030137,2]
[424262374,1780708250000,-150.0,0.00030137,2]
[424262365,1780708250000,-293.64,0.00030137,2]
[424262350,1780708250000,-1500.0,0.00030137,15]
[424262355,1780708250000,-1126.29106841,0.00030137,120]
[424262348,1780708250000,-1500.0,0.00030137,15]
[424262310,1780708250000,-602.34745994,0.00030017,2]
[424262347,1780708250000,-1500.0,0.00030137,15]
[424262311,1780708250000,-1000.0,0.00030017,14]
[424262367,1780708250000,-293.64,0.00030137,2]
[424262313,1780708250000,-492.4973051,0.00030036,2]
[424262312,1780708250000,-529.86578714,0.00030036,2]
[424262315,1780708250000,-524.491808,0.00030036,2]
[424262314,1780708250000,-521.08189096,0.00030036,2]
[424262321,1780708250000,-165.0533866,0.00030036,2]
[424262317,1780708250000,-484.82132612,0.00030036,2]
[424262316,1780708250000,-527.59536752,0.00030036,2]
[424262324,1780708250000,-609.52855402,0.00030036,2]
[424262319,1780708250000,-598.38990284,0.00030036,2]
[424262323,1780708250000,-939.24317172,0.00030036,2]
[424262322,1780708250000,-228.11703454,0.00030036,2]
[424262349,1780708250000,-1500.0,0.00030137,15]
[424262318,1780708250000,-281.15252233,0.00030036,2]
[424262325,1780708250000,-1364.0,0.000301,7]
[424262327,1780708250000,-905.92,0.00030137,2]
[424262332,1780708250000,-372.63991774,0.00030137,2]
[424262331,1780708250000,-186.31995887,0.00030137,2]
[424262326,1780708250000,-288.01,0.00030137,31]
[424262329,1780708250000,-1000.0,0.00030137,120]
[424262330,1780708250000,-2500.0,0.00030137,120]
[424262334,1780708250000,-500.0,0.00030137,3]
[424262328,1780708250000,-311.3,0.00030137,2]
[424262336,1780708250000,-500.0,0.00030137,3]
[424262335,1780708250000,-500.0,0.00030137,3]
[424262333,1780708250000,-558.95987661,0.00030137,2]
[424262338,1780708250000,-500.0,0.00030137,3]
[424262320,1780708250000,-538.11136772,0.00030036,2]
[424262370,1780708250000,-150.0,0.00030137,2]
[424262369,1780708250000,-150.0,0.00030137,2]
[424262368,1780708250000,-293.64,0.00030137,2]
[424262404,1780708250000,-150.0,0.00030137,2]
[424262406,1780708250000,-150.0,0.00030137,2]
[424262407,1780708250000,-150.0,0.00030137,2]
[424262412,1780708250000,-150.0,0.00030137,2]
[424262410,1780708250000,-150.0,0.00030137,2]
[424262411,1780708250000,-150.0,0.00030137,2]
[424262408,1780708250000,-150.0,0.00030137,2]
[424262413,1780708250000,-150.0,0.00030137,2]
[424262414,1780708250000,-150.0,0.00030137,2]
[424262424,1780708250000,-150.0,0.00030137,2]
[424262416,1780708250000,-150.0,0.00030137,2]
[424262415,1780708250000,-150.0,0.00030137,2]
[424262417,1780708250000,-150.0,0.00030137,2]
[424262401,1780708250000,-150.0,0.00030137,2]
[424262418,1780708250000,-150.0,0.00030137,2]
[424262419,1780708250000,-150.0,0.00030137,2]
[424262422,1780708250000,-150.0,0.00030137,2]
[424262423,1780708250000,-150.0,0.00030137,2]
[424262421,1780708250000,-150.0,0.00030137,2]
[424262434,1780708250000,-150.0,0.00030137,2]
[424262427,1780708250000,-150.0,0.00030137,2]
[424262425,1780708250000,-150.0,0.00030137,2]
[424262426,1780708250000,-150.0,0.00030137,2]
[424262433,1780708250000,-150.0,0.00030137,2]
[424262431,1780708250000,-150.0,0.00030137,2]
[424262429,1780708250000,-150.0,0.00030137,2]
[424262430,1780708250000,-150.0,0.00030137,2]
[424262428,1780708250000,-150.0,0.00030137,2]
[424262420,1780708250000,-150.0,0.00030137,2]
[424262403,1780708250000,-150.0,0.00030137,2]
[424262432,1780708250000,-150.0,0.00030137,2]
[424262409,1780708250000,-150.0,0.00030137,2]
[424262405,1780708250000,-150.0,0.00030137,2]
[424262371,1780708250000,-150.0,0.00030137,2]
[424262377,1780708250000,-150.0,0.00030137,2]
[424262378,1780708250000,-150.0,0.00030137,2]
[424262379,1780708250000,-150.0,0.00030137,2]
[424262376,1780708250000,-150.0,0.00030137,2]
[424262382,1780708250000,-150.0,0.00030137,2]
[424262384,1780708250000,-150.0,0.00030137,2]